[Event "Early-Titled-Tuesday-Blitz-August-29-2023"]
[Site "Chess.com"]
[Date "2023.08.29"]
[Round "5"]
[White "lamomiajunior"]
[Black "Mesa_1"]
[Result "1-0"]
[WhiteElo "2807"]
[BlackElo "2579"]
[TimeControl "180+1"]
[EndTime "8:55:00 PDT"]
[Termination "lamomiajunior won by resignation"]

1. d4 {[%clk 0:03:00.9]} 1... Nf6 {[%clk 0:02:58.2]} 2. Nc3 {[%clk 0:03:01.6]}
2... d6 {[%clk 0:02:52.2]} 3. e4 {[%clk 0:03:01.4]} 3... Nc6 {[%clk 0:02:53]} 4.
Nf3 {[%clk 0:02:51.3]} 4... g6 {[%clk 0:02:51.9]} 5. Be3 {[%clk 0:02:50.5]} 5...
Bg7 {[%clk 0:02:50.5]} 6. Qd2 {[%clk 0:02:51]} 6... O-O {[%clk 0:02:50.2]} 7.
Bh6 {[%clk 0:02:49.8]} 7... a6 {[%clk 0:02:50.9]} 8. h4 {[%clk 0:02:49.2]} 8...
Bg4 {[%clk 0:02:48.4]} 9. Bxg7 {[%clk 0:02:41.7]} 9... Kxg7 {[%clk 0:02:49.3]}
10. Be2 {[%clk 0:02:24.9]} 10... Bxf3 {[%clk 0:02:48.9]} 11. Bxf3 {[%clk
0:02:25.8]} 11... e5 {[%clk 0:02:49.4]} 12. Ne2 {[%clk 0:02:13.3]} 12... d5
{[%clk 0:01:49.1]} 13. exd5 {[%clk 0:02:01.9]} 13... e4 {[%clk 0:01:49]} 14.
dxc6 {[%clk 0:02:00.4]} 14... exf3 {[%clk 0:01:49.2]} 15. gxf3 {[%clk
0:02:01.3]} 15... bxc6 {[%clk 0:01:48.6]} 16. O-O-O {[%clk 0:01:50]} 16... Qd5
{[%clk 0:01:48.2]} 17. Kb1 {[%clk 0:01:42.4]} 17... Qxf3 {[%clk 0:01:47.8]} 18.
Ng3 {[%clk 0:01:42.6]} 18... h5 {[%clk 0:01:34.5]} 19. Rhg1 {[%clk 0:01:41.2]}
19... Rfe8 {[%clk 0:01:30.5]} 20. Qg5 {[%clk 0:01:25.9]} 20... Re6 {[%clk
0:01:28.9]} 21. Nf5+ {[%clk 0:01:17.6]} 21... Kg8 {[%clk 0:01:18.2]} 22. Nh6+
{[%clk 0:01:14.4]} 22... Kg7 {[%clk 0:01:15.4]} 23. Nxf7 {[%clk 0:00:38.6]}
23... Ne4 {[%clk 0:00:43.4]} 24. Qh6+ {[%clk 0:00:19.9]} 24... Kxf7 {[%clk
0:00:43.5]} 25. Qh7+ {[%clk 0:00:20.5]} 25... Ke8 {[%clk 0:00:44.2]} 26. Qg8+
{[%clk 0:00:19.1]} 26... Ke7 {[%clk 0:00:36.7]} 27. Qxa8 {[%clk 0:00:19.3]}
27... c5 {[%clk 0:00:37.5]} 28. Qa7 {[%clk 0:00:18]} 28... Nxf2 {[%clk
0:00:26.6]} 29. Qxc7+ {[%clk 0:00:17.7]} 29... Kf6 {[%clk 0:00:27.3]} 30. Rdf1
{[%clk 0:00:17.4]} 30... cxd4 {[%clk 0:00:22]} 31. Qd8+ {[%clk 0:00:17.9]} 31...
Kf7 {[%clk 0:00:16.3]} 32. Qd7+ {[%clk 0:00:17.6]} 32... Re7 {[%clk 0:00:15]}
33. Qxd4 {[%clk 0:00:18.3]} 33... Re2 {[%clk 0:00:15.6]} 34. Qd7+ {[%clk
0:00:16.9]} 34... Kf6 {[%clk 0:00:15.6]} 35. Qd6+ {[%clk 0:00:17.4]} 35... Re6
{[%clk 0:00:13.7]} 36. Qd4+ {[%clk 0:00:17.8]} 36... Ke7 {[%clk 0:00:14.2]} 37.
Qxf2 {[%clk 0:00:17.1]} 1-0

[Event "Early-Titled-Tuesday-Blitz-August-29-2023"]
[Site "Chess.com"]
[Date "2023.08.29"]
[Round "5"]
[White "Witik"]
[Black "Orest_Vovk"]
[Result "1-0"]
[WhiteElo "2791"]
[BlackElo "2546"]
[TimeControl "180+1"]
[EndTime "8:55:02 PDT"]
[Termination "Witik won on time"]

1. d4 {[%clk 0:02:58.9]} 1... g6 {[%clk 0:02:57.1]} 2. e4 {[%clk 0:02:57.7]}
2... Nf6 {[%clk 0:02:56.6]} 3. Nc3 {[%clk 0:02:52]} 3... d5 {[%clk 0:02:56.1]}
4. e5 {[%clk 0:02:50.5]} 4... Ne4 {[%clk 0:02:56.2]} 5. Nce2 {[%clk 0:02:50.7]}
5... h6 {[%clk 0:02:55.7]} 6. h4 {[%clk 0:02:46.5]} 6... c5 {[%clk 0:02:55.1]}
7. f3 {[%clk 0:02:44.7]} 7... Qa5+ {[%clk 0:02:47.7]} 8. c3 {[%clk 0:02:42.8]}
8... cxd4 {[%clk 0:02:35.9]} 9. fxe4 {[%clk 0:02:41.7]} 9... dxc3 {[%clk
0:02:35.1]} 10. Nxc3 {[%clk 0:02:38.3]} 10... dxe4 {[%clk 0:02:34.2]} 11. Qd5
{[%clk 0:02:30.5]} 11... Qb6 {[%clk 0:02:15.1]} 12. Qb5+ {[%clk 0:02:10.9]}
12... Nc6 {[%clk 0:02:14.7]} 13. Nd5 {[%clk 0:01:57]} 13... Qd8 {[%clk
0:02:01.2]} 14. Bf4 {[%clk 0:01:32.8]} 14... a6 {[%clk 0:01:40.5]} 15. Qb3
{[%clk 0:01:28.9]} 15... Be6 {[%clk 0:01:31.8]} 16. O-O-O {[%clk 0:01:26.6]}
16... Bg7 {[%clk 0:01:05.1]} 17. Nf6+ {[%clk 0:01:15.1]} 17... exf6 {[%clk
0:00:58.5]} 18. Rxd8+ {[%clk 0:01:15.4]} 18... Rxd8 {[%clk 0:00:54.1]} 19. Qxb7
{[%clk 0:01:14.2]} 19... Nxe5 {[%clk 0:00:52]} 20. Bxe5 {[%clk 0:00:53.9]} 20...
fxe5 {[%clk 0:00:52.9]} 21. Bxa6 {[%clk 0:00:43.9]} 21... O-O {[%clk 0:00:47]}
22. Ne2 {[%clk 0:00:38.6]} 22... Bxa2 {[%clk 0:00:34.8]} 23. Nc3 {[%clk
0:00:37.7]} 23... Be6 {[%clk 0:00:27.8]} 24. h5 {[%clk 0:00:31.3]} 24... e3
{[%clk 0:00:13.8]} 25. hxg6 {[%clk 0:00:27.8]} 25... fxg6 {[%clk 0:00:14.2]} 26.
Qe4 {[%clk 0:00:26.4]} 26... Bf5 {[%clk 0:00:13.4]} 27. Qxe3 {[%clk 0:00:24.2]}
27... e4 {[%clk 0:00:10.9]} 28. Rxh6 {[%clk 0:00:21.2]} 28... Bxh6 {[%clk
0:00:10.1]} 29. Qxh6 {[%clk 0:00:21]} 29... Rd4 {[%clk 0:00:05.9]} 30. g4 {[%clk
0:00:17.8]} 30... Bc8 {[%clk 0:00:03.4]} 31. Qxg6+ {[%clk 0:00:16.3]} 31... Kh8
{[%clk 0:00:02.3]} 32. Bxc8 {[%clk 0:00:15.1]} 32... e3 {[%clk 0:00:02.2]} 33.
Qh6+ {[%clk 0:00:14.4]} 1-0

[Event "Early-Titled-Tuesday-Blitz-August-29-2023"]
[Site "Chess.com"]
[Date "2023.08.29"]
[Round "5"]
[White "Fh2411"]
[Black "Quattroporte300"]
[Result "1-0"]
[WhiteElo "2656"]
[BlackElo "2440"]
[TimeControl "180+1"]
[EndTime "8:55:02 PDT"]
[Termination "Fh2411 won by checkmate"]

1. d4 {[%clk 0:02:56.9]} 1... d5 {[%clk 0:02:57.9]} 2. Nf3 {[%clk 0:02:54.7]}
2... Nf6 {[%clk 0:02:56.8]} 3. Bf4 {[%clk 0:02:55.1]} 3... g6 {[%clk 0:02:53.8]}
4. e3 {[%clk 0:02:55]} 4... Bg7 {[%clk 0:02:50.5]} 5. h3 {[%clk 0:02:55.3]} 5...
c5 {[%clk 0:02:47]} 6. c3 {[%clk 0:02:54.8]} 6... Nc6 {[%clk 0:02:45]} 7. Nbd2
{[%clk 0:02:48.6]} 7... O-O {[%clk 0:02:31.2]} 8. dxc5 {[%clk 0:02:46.4]} 8...
a5 {[%clk 0:02:24.8]} 9. a4 {[%clk 0:02:43.5]} 9... Re8 {[%clk 0:02:24.1]} 10.
Bb5 {[%clk 0:02:42.4]} 10... Bd7 {[%clk 0:01:27.5]} 11. Bh2 {[%clk 0:02:29.5]}
11... Rc8 {[%clk 0:01:23.4]} 12. Nb3 {[%clk 0:02:16.4]} 12... e6 {[%clk
0:01:09.1]} 13. O-O {[%clk 0:02:13.7]} 13... Na7 {[%clk 0:01:06]} 14. Qe2 {[%clk
0:01:58.3]} 14... Ne4 {[%clk 0:00:32.8]} 15. Bxd7 {[%clk 0:01:50.3]} 15... Qxd7
{[%clk 0:00:33.7]} 16. Nxa5 {[%clk 0:01:49.9]} 16... Rxc5 {[%clk 0:00:34.1]} 17.
Nb3 {[%clk 0:01:47]} 17... Rc4 {[%clk 0:00:33.9]} 18. a5 {[%clk 0:01:27.3]}
18... Qb5 {[%clk 0:00:20.4]} 19. Nfd4 {[%clk 0:01:21.7]} 19... Qa6 {[%clk
0:00:12.8]} 20. f3 {[%clk 0:01:14]} 20... Nd6 {[%clk 0:00:10.6]} 21. Nd2 {[%clk
0:01:07.3]} 21... Bxd4 {[%clk 0:00:05.9]} 22. exd4 {[%clk 0:00:48.1]} 22... Rc6
{[%clk 0:00:05.7]} 23. Qe3 {[%clk 0:00:47.3]} 23... Nac8 {[%clk 0:00:02.6]} 24.
g4 {[%clk 0:00:46.5]} 24... Ne7 {[%clk 0:00:03.1]} 25. Qh6 {[%clk 0:00:46.2]}
25... Rec8 {[%clk 0:00:02.8]} 26. Be5 {[%clk 0:00:45.3]} 26... Ne8 {[%clk
0:00:03.4]} 27. Rf2 {[%clk 0:00:40.4]} 27... f6 {[%clk 0:00:04]} 28. Bg3 {[%clk
0:00:38.7]} 28... b6 {[%clk 0:00:04.3]} 29. Nb3 {[%clk 0:00:36.3]} 29... bxa5
{[%clk 0:00:04.7]} 30. Rxa5 {[%clk 0:00:34.7]} 30... Qb6 {[%clk 0:00:04.7]} 31.
Ra3 {[%clk 0:00:34.1]} 31... R6c7 {[%clk 0:00:03.5]} 32. Bxc7 {[%clk 0:00:31.2]}
32... Qxc7 {[%clk 0:00:03.6]} 33. Kg2 {[%clk 0:00:31.8]} 33... Rb8 {[%clk
0:00:04.2]} 34. Nc5 {[%clk 0:00:28.8]} 34... Qc6 {[%clk 0:00:03.7]} 35. b4
{[%clk 0:00:26.7]} 35... Rb6 {[%clk 0:00:04.2]} 36. Ra7 {[%clk 0:00:26.3]} 36...
Nc8 {[%clk 0:00:03.1]} 37. Qxh7+ {[%clk 0:00:25.6]} 37... Kf8 {[%clk 0:00:03.1]}
38. Qf7# {[%clk 0:00:26.2]} 1-0

[Event "Early-Titled-Tuesday-Blitz-August-29-2023"]
[Site "Chess.com"]
[Date "2023.08.29"]
[Round "5"]
[White "valemava"]
[Black "ChainedDowntohell"]
[Result "0-1"]
[WhiteElo "2323"]
[BlackElo "2536"]
[TimeControl "180+1"]
[EndTime "8:55:02 PDT"]
[Termination "ChainedDowntohell won by checkmate"]

1. Nf3 {[%clk 0:03:00.9]} 1... b6 {[%clk 0:02:57.6]} 2. c4 {[%clk 0:03:00.9]}
2... Bb7 {[%clk 0:02:56.3]} 3. b3 {[%clk 0:03:01.2]} 3... c5 {[%clk 0:02:52]} 4.
Bb2 {[%clk 0:03:01.2]} 4... Nf6 {[%clk 0:02:49.4]} 5. d3 {[%clk 0:03:00.8]} 5...
e6 {[%clk 0:02:43.9]} 6. Nbd2 {[%clk 0:03:00.8]} 6... d5 {[%clk 0:02:43.8]} 7.
g3 {[%clk 0:03:01]} 7... Be7 {[%clk 0:02:42.9]} 8. cxd5 {[%clk 0:03:00.5]} 8...
Qxd5 {[%clk 0:02:39.6]} 9. Bg2 {[%clk 0:03:00.6]} 9... O-O {[%clk 0:02:39.6]}
10. O-O {[%clk 0:02:58.4]} 10... Na6 {[%clk 0:02:29]} 11. Ne4 {[%clk 0:02:51.2]}
11... Nxe4 {[%clk 0:02:21.5]} 12. dxe4 {[%clk 0:02:50.6]} 12... Qxd1 {[%clk
0:02:18]} 13. Rfxd1 {[%clk 0:02:49.5]} 13... Bxe4 {[%clk 0:01:51]} 14. Rd7
{[%clk 0:02:44.3]} 14... Bf6 {[%clk 0:01:39.7]} 15. Ne5 {[%clk 0:02:38.9]} 15...
Bxg2 {[%clk 0:01:27.9]} 16. Kxg2 {[%clk 0:02:39.8]} 16... Nb4 {[%clk 0:01:17.4]}
17. a3 {[%clk 0:02:21.3]} 17... Nd5 {[%clk 0:01:07.7]} 18. e4 {[%clk 0:02:18.1]}
18... Ne7 {[%clk 0:01:06]} 19. Rad1 {[%clk 0:02:06.4]} 19... Bxe5 {[%clk
0:00:50.9]} 20. Bxe5 {[%clk 0:02:07.3]} 20... Nc6 {[%clk 0:00:50.1]} 21. Bc7
{[%clk 0:02:05.1]} 21... Rac8 {[%clk 0:00:42.1]} 22. f4 {[%clk 0:02:01.8]} 22...
Rfe8 {[%clk 0:00:41]} 23. a4 {[%clk 0:01:53.7]} 23... Re7 {[%clk 0:00:28.1]} 24.
e5 {[%clk 0:01:44]} 24... Rxd7 {[%clk 0:00:26.6]} 25. Rxd7 {[%clk 0:01:43.1]}
25... Kf8 {[%clk 0:00:21.7]} 26. Bd6+ {[%clk 0:01:38]} 26... Ke8 {[%clk
0:00:20.5]} 27. Rb7 {[%clk 0:01:37.9]} 27... h6 {[%clk 0:00:17.2]} 28. h4 {[%clk
0:01:34.8]} 28... h5 {[%clk 0:00:16.8]} 29. Kh3 {[%clk 0:01:30.4]} 29... g6
{[%clk 0:00:10.4]} 30. g4 {[%clk 0:01:29.5]} 30... hxg4+ {[%clk 0:00:08.3]} 31.
Kxg4 {[%clk 0:01:30.4]} 31... Rd8 {[%clk 0:00:03.4]} 32. Kg5 {[%clk 0:01:27]}
32... Rd7 {[%clk 0:00:03.2]} 33. Rc7 {[%clk 0:01:12.1]} 33... Rxc7 {[%clk
0:00:02.4]} 34. Bxc7 {[%clk 0:01:13]} 34... Nd4 {[%clk 0:00:01.4]} 35. Bb8
{[%clk 0:01:08.5]} 35... Nxb3 {[%clk 0:00:01.8]} 36. Bxa7 {[%clk 0:01:08.7]}
36... c4 {[%clk 0:00:02.4]} 37. Bxb6 {[%clk 0:01:07.9]} 37... c3 {[%clk
0:00:02.4]} 38. Be3 {[%clk 0:01:07.9]} 38... c2 {[%clk 0:00:01.9]} 39. a5 {[%clk
0:01:07.6]} 39... Nxa5 {[%clk 0:00:02.1]} 40. h5 {[%clk 0:01:07]} 40... gxh5
{[%clk 0:00:01.9]} 41. f5 {[%clk 0:01:07.6]} 41... Nb3 {[%clk 0:00:02.5]} 42.
fxe6 {[%clk 0:01:07.2]} 42... fxe6 {[%clk 0:00:03.4]} 43. Kf6 {[%clk 0:01:06.6]}
43... Kd7 {[%clk 0:00:03.7]} 44. Kg5 {[%clk 0:01:04.9]} 44... Kc6 {[%clk
0:00:03.6]} 45. Kf6 {[%clk 0:01:04.8]} 45... Kd5 {[%clk 0:00:03.8]} 46. Kg5
{[%clk 0:01:04.1]} 46... c1=Q {[%clk 0:00:04]} 47. Bxc1 {[%clk 0:01:03.5]} 47...
Nxc1 {[%clk 0:00:04.9]} 48. Kxh5 {[%clk 0:01:03.9]} 48... Nd3 {[%clk 0:00:05.8]}
49. Kg4 {[%clk 0:01:04.7]} 49... Nxe5+ {[%clk 0:00:06.5]} 50. Kf4 {[%clk
0:01:05.1]} 50... Nc4 {[%clk 0:00:07.4]} 51. Kf3 {[%clk 0:01:05.1]} 51... e5
{[%clk 0:00:08.3]} 52. Ke2 {[%clk 0:01:05.9]} 52... e4 {[%clk 0:00:09.2]} 53.
Kf2 {[%clk 0:01:05.6]} 53... e3+ {[%clk 0:00:10.1]} 54. Ke2 {[%clk 0:01:06.3]}
54... Kd4 {[%clk 0:00:10.5]} 55. Ke1 {[%clk 0:01:06.7]} 55... Kd3 {[%clk
0:00:11.4]} 56. Kd1 {[%clk 0:01:07.5]} 56... e2+ {[%clk 0:00:11.3]} 57. Ke1
{[%clk 0:01:08.4]} 57... Ne5 {[%clk 0:00:10.8]} 58. Kf2 {[%clk 0:01:08.7]} 58...
Kd2 {[%clk 0:00:11.7]} 59. Kg3 {[%clk 0:01:08.6]} 59... e1=Q+ {[%clk 0:00:11.8]}
60. Kf4 {[%clk 0:01:09.5]} 60... Nd3+ {[%clk 0:00:11.9]} 61. Kf3 {[%clk
0:01:09.3]} 61... Qe3+ {[%clk 0:00:11.2]} 62. Kg4 {[%clk 0:01:09.4]} 62... Qf4+
{[%clk 0:00:11.4]} 63. Kh3 {[%clk 0:01:09.2]} 63... Qg5 {[%clk 0:00:11.2]} 64.
Kh2 {[%clk 0:01:09.4]} 64... Nf4 {[%clk 0:00:10.7]} 65. Kh1 {[%clk 0:01:09.2]}
65... Qg2# {[%clk 0:00:11.6]} 0-1

[Event "Early-Titled-Tuesday-Blitz-August-29-2023"]
[Site "Chess.com"]
[Date "2023.08.29"]
[Round "5"]
[White "guillembaches"]
[Black "GasconJR"]
[Result "0-1"]
[WhiteElo "2440"]
[BlackElo "2671"]
[TimeControl "180+1"]
[EndTime "8:55:03 PDT"]
[Termination "GasconJR won on time"]

1. e4 {[%clk 0:03:00.9]} 1... e5 {[%clk 0:02:59.6]} 2. Nf3 {[%clk 0:02:59.9]}
2... Nc6 {[%clk 0:02:59.1]} 3. Nc3 {[%clk 0:03:00.4]} 3... Nf6 {[%clk
0:02:53.4]} 4. d4 {[%clk 0:02:48.7]} 4... exd4 {[%clk 0:02:51]} 5. Nxd4 {[%clk
0:02:49.3]} 5... d6 {[%clk 0:02:50.4]} 6. Bb5 {[%clk 0:02:42.1]} 6... Bd7 {[%clk
0:02:49.8]} 7. Bxc6 {[%clk 0:02:42]} 7... bxc6 {[%clk 0:02:48.8]} 8. Qf3 {[%clk
0:02:41.6]} 8... g6 {[%clk 0:02:45.7]} 9. h3 {[%clk 0:02:38.5]} 9... Bg7 {[%clk
0:02:45.2]} 10. Be3 {[%clk 0:02:37.6]} 10... O-O {[%clk 0:02:44.6]} 11. O-O
{[%clk 0:02:36.1]} 11... Re8 {[%clk 0:02:41.9]} 12. Rfe1 {[%clk 0:02:29.2]}
12... Qb8 {[%clk 0:02:39.5]} 13. Rab1 {[%clk 0:02:20.4]} 13... Qb7 {[%clk
0:02:38.8]} 14. Bg5 {[%clk 0:02:15.2]} 14... Nh5 {[%clk 0:02:23.7]} 15. Nf5
{[%clk 0:01:48.9]} 15... gxf5 {[%clk 0:00:50.4]} 16. Qxh5 {[%clk 0:01:47.6]}
16... Re6 {[%clk 0:00:50.7]} 17. exf5 {[%clk 0:01:31.9]} 17... Rxe1+ {[%clk
0:00:50.4]} 18. Rxe1 {[%clk 0:01:32.5]} 18... Bxf5 {[%clk 0:00:49.9]} 19. Bc1
{[%clk 0:01:02.2]} 19... Bxc2 {[%clk 0:00:44.1]} 20. Re7 {[%clk 0:00:54.1]}
20... Bg6 {[%clk 0:00:42.7]} 21. Qe2 {[%clk 0:00:54.4]} 21... Qc8 {[%clk
0:00:25.3]} 22. h4 {[%clk 0:00:48.8]} 22... h5 {[%clk 0:00:24.6]} 23. Ne4 {[%clk
0:00:35.2]} 23... Qg4 {[%clk 0:00:13]} 24. f3 {[%clk 0:00:14.8]} 24... Qxh4
{[%clk 0:00:13.3]} 25. Nf2 {[%clk 0:00:04.2]} 25... Bf6 {[%clk 0:00:10.2]} 26.
Re8+ {[%clk 0:00:04.3]} 26... Rxe8 {[%clk 0:00:09.4]} 27. Qxe8+ {[%clk
0:00:04.3]} 27... Kg7 {[%clk 0:00:10.1]} 28. Qc8 {[%clk 0:00:03.7]} 28... Bd4
{[%clk 0:00:08.3]} 0-1

[Event "Early-Titled-Tuesday-Blitz-August-29-2023"]
[Site "Chess.com"]
[Date "2023.08.29"]
[Round "5"]
[White "realburq"]
[Black "Fraler15"]
[Result "0-1"]
[WhiteElo "2412"]
[BlackElo "2254"]
[TimeControl "180+1"]
[EndTime "8:55:03 PDT"]
[Termination "Fraler15 won by checkmate"]

1. e4 {[%clk 0:03:00.9]} 1... c5 {[%clk 0:02:57.8]} 2. Nc3 {[%clk 0:03:00.7]}
2... Nc6 {[%clk 0:02:57]} 3. Bc4 {[%clk 0:03:00.7]} 3... e6 {[%clk 0:02:55.1]}
4. a3 {[%clk 0:03:00.4]} 4... Nf6 {[%clk 0:02:54.4]} 5. Ba2 {[%clk 0:02:41.8]}
5... d5 {[%clk 0:02:52.3]} 6. exd5 {[%clk 0:02:30]} 6... exd5 {[%clk 0:02:51.6]}
7. d3 {[%clk 0:02:29.4]} 7... d4 {[%clk 0:02:50.1]} 8. Ne4 {[%clk 0:02:15.7]}
8... Bf5 {[%clk 0:02:47.8]} 9. Ng3 {[%clk 0:02:08]} 9... Bg6 {[%clk 0:02:47.2]}
10. Nf3 {[%clk 0:01:58.3]} 10... Bd6 {[%clk 0:02:45.1]} 11. O-O {[%clk
0:01:55.8]} 11... O-O {[%clk 0:02:44.2]} 12. Re1 {[%clk 0:01:43.9]} 12... h6
{[%clk 0:02:43]} 13. Nh4 {[%clk 0:01:32.8]} 13... Bh7 {[%clk 0:02:42.4]} 14.
Nhf5 {[%clk 0:01:30.2]} 14... Bc7 {[%clk 0:02:41]} 15. Nxh6+ {[%clk 0:01:24]}
15... gxh6 {[%clk 0:02:36.7]} 16. Bxh6 {[%clk 0:01:24.9]} 16... Re8 {[%clk
0:02:32]} 17. Qd2 {[%clk 0:01:24]} 17... Ne5 {[%clk 0:01:15.1]} 18. Qg5+ {[%clk
0:00:18]} 18... Ng6 {[%clk 0:01:12.2]} 19. Rxe8+ {[%clk 0:00:17.2]} 19... Nxe8
{[%clk 0:01:11]} 20. Qxc5 {[%clk 0:00:14.6]} 20... Bxg3 {[%clk 0:01:05.9]} 21.
hxg3 {[%clk 0:00:10.6]} 21... Rc8 {[%clk 0:01:04.4]} 22. Qf5 {[%clk 0:00:07.2]}
22... Nd6 {[%clk 0:00:58.7]} 23. Qf3 {[%clk 0:00:04.9]} 23... Rxc2 {[%clk
0:00:55.2]} 24. Re1 {[%clk 0:00:04.3]} 24... Rxb2 {[%clk 0:00:51.2]} 25. Bd5
{[%clk 0:00:04.3]} 25... Rc2 {[%clk 0:00:40]} 26. g4 {[%clk 0:00:02.7]} 26...
Nh4 {[%clk 0:00:34.3]} 27. Qh3 {[%clk 0:00:01.3]} 27... Bg6 {[%clk 0:00:30.1]}
28. g5 {[%clk 0:00:01.9]} 28... Nhf5 {[%clk 0:00:29.8]} 29. g3 {[%clk
0:00:01.7]} 29... Qc8 {[%clk 0:00:24.7]} 30. Qg2 {[%clk 0:00:02.4]} 30... Rc1
{[%clk 0:00:24.2]} 31. Be4 {[%clk 0:00:02.6]} 31... Rxe1+ {[%clk 0:00:23.9]} 32.
Kh2 {[%clk 0:00:03.4]} 32... Nxe4 {[%clk 0:00:23.2]} 33. dxe4 {[%clk 0:00:03]}
33... Nxh6 {[%clk 0:00:23.2]} 34. gxh6 {[%clk 0:00:02.3]} 34... Kh7 {[%clk
0:00:20.5]} 35. e5 {[%clk 0:00:02.3]} 35... Qf5 {[%clk 0:00:19.1]} 36. Qxb7
{[%clk 0:00:02.8]} 36... Qh5+ {[%clk 0:00:18.7]} 37. Kg2 {[%clk 0:00:03.1]}
37... Qh1# {[%clk 0:00:18.8]} 0-1

[Event "Early-Titled-Tuesday-Blitz-August-29-2023"]
[Site "Chess.com"]
[Date "2023.08.29"]
[Round "5"]
[White "ErikRonka"]
[Black "VladimirKramnik"]
[Result "0-1"]
[WhiteElo "2500"]
[BlackElo "2943"]
[TimeControl "180+1"]
[EndTime "8:55:05 PDT"]
[Termination "VladimirKramnik won by resignation"]

1. e4 {[%clk 0:03:00.9]} 1... c5 {[%clk 0:02:59.6]} 2. Nf3 {[%clk 0:03:00.9]}
2... d6 {[%clk 0:02:59.8]} 3. d4 {[%clk 0:03:01.5]} 3... cxd4 {[%clk 0:02:59.4]}
4. Nxd4 {[%clk 0:03:02.4]} 4... Nf6 {[%clk 0:02:59]} 5. Nc3 {[%clk 0:03:03]}
5... Nc6 {[%clk 0:02:58.8]} 6. Bg5 {[%clk 0:03:03]} 6... Bd7 {[%clk 0:02:56.7]}
7. Qd2 {[%clk 0:03:02.8]} 7... a6 {[%clk 0:02:56.8]} 8. O-O-O {[%clk 0:02:58.1]}
8... e6 {[%clk 0:02:55.9]} 9. f4 {[%clk 0:02:58]} 9... Be7 {[%clk 0:02:53.6]}
10. Nf3 {[%clk 0:02:57.7]} 10... b5 {[%clk 0:02:48.3]} 11. Bxf6 {[%clk
0:02:50.4]} 11... gxf6 {[%clk 0:02:47.1]} 12. f5 {[%clk 0:02:48.2]} 12... Qb6
{[%clk 0:02:32]} 13. g3 {[%clk 0:02:45.9]} 13... O-O-O {[%clk 0:02:30.1]} 14.
fxe6 {[%clk 0:02:35.6]} 14... fxe6 {[%clk 0:02:29.3]} 15. Bh3 {[%clk 0:02:25]}
15... Kb8 {[%clk 0:02:28.7]} 16. Kb1 {[%clk 0:02:12]} 16... Rc8 {[%clk
0:02:21.8]} 17. Nd5 {[%clk 0:01:45.7]} 17... exd5 {[%clk 0:02:20.6]} 18. Bxd7
{[%clk 0:01:46.6]} 18... dxe4 {[%clk 0:02:20.5]} 19. Bxc8 {[%clk 0:01:44.5]}
19... Rxc8 {[%clk 0:02:21.1]} 20. Nd4 {[%clk 0:01:32.1]} 20... Ne5 {[%clk
0:02:20.6]} 21. Nf5 {[%clk 0:01:29.1]} 21... Bf8 {[%clk 0:02:05.5]} 22. Qd5
{[%clk 0:01:09.1]} 22... e3 {[%clk 0:01:50.7]} 23. Rhe1 {[%clk 0:01:02.7]} 23...
Nc4 {[%clk 0:01:50]} 24. Qd4 {[%clk 0:00:53.7]} 24... Qxd4 {[%clk 0:01:31.7]}
25. Rxd4 {[%clk 0:00:44]} 25... Nd2+ {[%clk 0:01:31.4]} 26. Kc1 {[%clk
0:00:38.7]} 26... Nf3 {[%clk 0:01:31]} 27. Re2 {[%clk 0:00:17.7]} 27... Nxd4
{[%clk 0:01:21.9]} 28. Nxd4 {[%clk 0:00:18.6]} 28... Re8 {[%clk 0:01:14]} 29.
Nf5 {[%clk 0:00:17]} 29... d5 {[%clk 0:01:09.5]} 30. c3 {[%clk 0:00:16.7]} 30...
Bc5 {[%clk 0:01:07.2]} 31. Kc2 {[%clk 0:00:16.6]} 31... Re5 {[%clk 0:01:05.2]}
32. g4 {[%clk 0:00:16.6]} 32... h5 {[%clk 0:01:03.8]} 33. h3 {[%clk 0:00:16.4]}
33... hxg4 {[%clk 0:01:03.7]} 34. hxg4 {[%clk 0:00:17.3]} 34... Re4 {[%clk
0:01:03.5]} 35. Kd3 {[%clk 0:00:02.5]} 35... Rxg4 {[%clk 0:01:02.9]} 36. b4
{[%clk 0:00:02.5]} 36... Bb6 {[%clk 0:00:57.6]} 37. Nd4 {[%clk 0:00:03.4]} 37...
Bxd4 {[%clk 0:00:53.3]} 38. cxd4 {[%clk 0:00:04.3]} 38... Re4 {[%clk 0:00:52.1]}
39. Rxe3 {[%clk 0:00:04.1]} 39... Rxe3+ {[%clk 0:00:50.1]} 40. Kxe3 {[%clk
0:00:05]} 40... Kc7 {[%clk 0:00:49.6]} 41. Kf4 {[%clk 0:00:05.9]} 41... Kd6
{[%clk 0:00:49.4]} 42. Kf5 {[%clk 0:00:06.4]} 42... Ke7 {[%clk 0:00:49.4]} 43.
a3 {[%clk 0:00:02.4]} 43... Kf7 {[%clk 0:00:49]} 44. Kf4 {[%clk 0:00:02.5]}
44... Kg6 {[%clk 0:00:48.8]} 45. Kg4 {[%clk 0:00:03.2]} 45... f5+ {[%clk
0:00:48.4]} 46. Kf4 {[%clk 0:00:03.8]} 46... Kf6 {[%clk 0:00:48.9]} 47. Kf3
{[%clk 0:00:03.8]} 47... Kg5 {[%clk 0:00:49]} 48. Kg3 {[%clk 0:00:03.5]} 48...
f4+ {[%clk 0:00:49.3]} 49. Kf3 {[%clk 0:00:03.9]} 49... Kf5 {[%clk 0:00:50]} 0-1